Cogmind - Beta 13 @@@ ROGUE MODE // 2024.04.02 @ 20:08:48 Player: Simyon Result: Destroyed self with Light Ion Engine chain reaction Performance ------------- Evolutions (0) 0 Regions Visited (2) 400 Robots Destroyed (20) 100 Value Destroyed (332) 332 Prototype IDs (0) 0 Alien Tech Used (0) 0 Bonus (0) 0 TOTAL SCORE: 832 Bonus ------- None Cogmind --------- Core Integrity 0/250 Matter 300/300 Energy 105/125 System Corruption 0% Temperature Cool (12) Movement Walking (680) Ox8 Location -10/Mines Parts ------- > --- POWER (1) -------- Light Ion Engine > --- PROPULSION (2) --- Aluminum Leg > --- UTILITY (2) ------ Huge Storage Unit > --- WEAPON (2) ------- EM Shotgun > --- INVENTORY (25) --- Wheel Targeting Computer Targeting Computer Targeting Computer Targeting Computer ECM Suite Small Laser Assault Rifle Light Assault Rifle Light Assault Rifle Light Cannon Light Cannon Datajack Datajack Peak State ------------ > --- POWER ------------ Ion Engine > --- PROPULSION ------- Light Treads Light Treads > --- UTILITY ---------- Salvage Targeting Computer Salvage Targeting Computer > --- WEAPON ----------- EM Pulse Gun Small Laser > --- INVENTORY -------- Small Storage Unit EM Pulse Gun EM Shotgun EM Shotgun [Rating: 9] Favorites ----------- Power Ion Engine Engine Ion Engine Propulsion Light Treads Treads Light Treads Leg Aluminum Leg Utility Huge Storage Unit Device Structural Scanner Storage Huge Storage Unit Processor Salvage Targeting Computer Weapon Assault Rifle Energy Gun EM Shotgun Ballistic Gun Assault Rifle Launcher Grenade Launcher Build | -11 -10 -10 ------- Run | Yrd Mat Min Slots Evolved . | . . . Power . | . . . Propulsion . | . . . Utility . | . . . Weapon . | . . . Parts Attached 17 | 5 8 4 Power 2 | 1 . 1 Engine 2 | 1 . 1 Core . | . . . Reactor . | . . . Propulsion 3 | 2 . 1 Treads 2 | 2 . . Leg 1 | . . 1 Wheel . | . . . Hover . | . . . Flight . | . . . Utility 5 | . 5 . Device 1 | . 1 . Storage 2 | . 2 . Processor 2 | . 2 . Hackware . | . . . Protection . | . . . Artifact . | . . . Weapon 7 | 2 3 2 Energy Gun 4 | 2 . 2 Energy Cannon . | . . . Ballistic Gun 2 | . 2 . Ballistic Cannon . | . . . Launcher 1 | . 1 . Special Weapon . | . . . Impact Weapon . | . . . Slashing Weapon . | . . . Piercing Weapon . | . . . Special Melee Weapon . | . . . Unidentified Prototypes . | . . . Parts Lost 7 | . . 7 Power 1 | . . 1 Propulsion 2 | . . 2 Utility 1 | . . 1 Weapon 3 | . . 3 Highest Loss Streak 6 | . . 6 To Critical Strikes 1 | . . 1 Average Slot Usage (%) 88 | . 98 48 Engine 12 | . 14 6 Treads 22 | . 28 . Leg 2 | . . 11 Device 5 | . 6 . Storage 13 | . 12 14 Processor 6 | . 7 . Energy Gun 4 | . 2 14 Ballistic Gun 14 | . 18 . Launcher 5 | . 6 . Naked Turns . | . . . Heaviest Build 91 | 8 91 91 Greatest Support 40 | 40 40 40 Greatest Overweight (x) 28 | . 2 28 Average Overweight (x) 1 | . 1 9 Largest Inventory Capacity 25 | 5 25 25 Average Capacity 22 | 5 22 25 Most Carried 16 | 5 16 16 Average Carried 9 | 3 8 13 Final Capacity 25 | 5 25 25 Final Carried 16 | 3 16 14 Class Distribution -------------------- 100% | Mutant Dominant Class ---------------- Mutant | -10/Materials Mutant | -10/Mines Resources | -11 -10 -10 ----------- Run | Yrd Mat Min Matter Collected 573 | 245 233 95 Remotely . | . . . Salvage Created 563 | . 297 266 Parts 38 | . 23 15 Haulers Intercepted . | . . . Recyclers Shooed 1 | . 1 . Parts Field Recycled . | . . . Retrieved Matter . | . . . Parts Self-Destructed . | . . . Prevented . | . . . Kills | -11 -10 -10 ------- Run | Yrd Mat Min Combat Hostiles Destroyed 12 | . 8 4 Guns 10 | . 7 3 AOE 2 | . 1 1 Classes Destroyed 5 | . 4 1 Worker 3 | . . 3 Recycler 3 | . 1 2 Watcher 2 | . 2 . Swarmer 8 | . 5 3 Grunt 4 | . 3 1 Best Kill Streak 4 | . 4 4 Combat Bots Only 3 | . 3 3 Max Kills in Single Turn 1 | . 1 1 Gunslinging . | . . . Exploded 1 | . 1 1 Melee . | . . . Uniques/NPCs Destroyed . | . . . Combat | -11 -10 -10 -------- Run | Yrd Mat Min Hostile Shots Fired 108 | . 66 42 Missed 26 | . 18 8 Damage Taken 953 | . 538 415 Core 250 | . 94 156 Absorbed by Shields . | . . . Core Remaining (%) 100 | 100 . . Volleys Fired 52 | . 37 15 Largest 2 | . 2 2 Hottest 90 | . 50 90 Shots Fired 86 | . 69 17 Gun 82 | . 66 16 Cannon . | . . . Launcher 4 | . 3 1 Special . | . . . Kinetic 66 | . 66 . Thermal . | . . . Explosive 4 | . 3 1 Electromagnetic 16 | . . 16 Robot Hit Streak 10 | . 10 5 Robot Miss Streak 6 | . 6 3 Penetration Max . | . . . Secondary Targets 2 | . 2 . Max Gunslinging Chain 1 | . 1 . Shots Hit Robots 54 | . 40 14 Core Hits 30 | . 18 12 Critical Kills . | . . . Critical Parts Destroyed 1 | . 1 . Critical Strikes 1 | . 1 . Destroy 1 | . 1 . Melee Attacks . | . . . Impact . | . . . Slashing . | . . . Piercing . | . . . Sneak Attacks . | . . . Combat Hostiles . | . . . Follow-up Attacks . | . . . Damage Inflicted 1060 | . 659 401 Guns 685 | . 499 186 Cannons . | . . . Explosions 375 | . 160 215 Melee . | . . . Ramming . | . . . Kinetic 499 | . 499 . Thermal 183 | . . 183 Explosive 192 | . 160 32 Electromagnetic 186 | . . 186 Impact . | . . . Slashing . | . . . Piercing . | . . . Highest Corruption . | . . . Average Corruption . | . . . Corruption Purged . | . . . Corruption Blocked . | . . . Overload Shots . | . . . Overflow Damage 18 | . . 18 Projectiles . | . . . Explosions 18 | . . 18 Melee . | . . . Knockbacks . | . . . Impact . | . . . Kinetic . | . . . Secondary . | . . . Self-Inflicted Damage 167 | . 34 133 Shots 6 | . 2 4 Rammed . | . . . Targets Rammed . | . . . Kicked . | . . . Crushed . | . . . Highest Temperature 45 | . 2 45 Average Temperature 10 | . 1 15 Received Heat Transfer 198 | . 168 30 Siege Activations . | . . . Robots Corrupted . | . . . Combat Hostiles . | . . . Parts Fried . | . . . Impact Corruptions . | . . . Robots Melted . | . . . Combat Hostiles . | . . . Parts Melted . | . . . Heat Transferred 300 | . . 300 Parts Sabotaged . | . . . Parts Stolen . | . . . Parts Stripped . | . . . Power Chain Reactions 2 | . . 2 Alert | -11 -10 -10 ------- Run | Yrd Mat Min Peak Influence 237 | . 237 87 Initial . | . . . Average 55 | . 55 70 Maximum Alert Level 1 | . 1 . Low Security (%) 96 | 100 94 100 Level 1 3 | . 5 . Level 2 . | . . . Level 3 . | . . . Level 4 . | . . . Level 5 . | . . . High Security . | . . . Max Security . | . . . Squads Dispatched 1 | . 1 . Investigation 1 | . 1 . Extermination . | . . . Reinforcement . | . . . Assault . | . . . Garrison . | . . . Intercept . | . . . Searches Triggered . | . . . Construction Impeded . | . . . Haulers Reinforced . | . . . Active Scanning Responses . | . . . Cargo Convoy Interrupts . | . . . Stealth | -11 -10 -10 --------- Run | Yrd Mat Min Distress Signals 2 | . 2 . Communications Jammed . | . . . Distress Signals . | . . . Times Spotted 22 | . 18 4 Peak Tracking Total 5 | . 5 3 Tactical Retreats 1 | . 1 . Traps | -11 -10 -10 ------- Run | Yrd Mat Min Traps Triggered 1 | . 1 . Indirectly . | . . . Trap Hack Attempts . | . . . Triggered . | . . . Disarmed . | . . . Reprogrammed . | . . . Reused . | . . . Traps Extracted . | . . . Installed . | . . . Triggered . | . . . Machines | -11 -10 -10 ---------- Run | Yrd Mat Min Machines Disabled 5 | . 4 1 Max in Single Turn 1 | . 1 1 Machines Repaired . | . . . Machines Dismantled . | . . . Machines Sabotaged . | . . . Overloaded Fab Kills . | . . . Hacking | -11 -10 -10 --------- Run | Yrd Mat Min Machines Accessed . | . . . Terminals . | . . . Fabricators . | . . . Repair Stations . | . . . Recycling Units . | . . . Scanalyzers . | . . . Garrison Access . | . . . Total Hacks . | . . . Successful . | . . . Failed . | . . . Catastrophic . | . . . Database Lockouts . | . . . Manual . | . . . Terminals . | . . . Fabricators . | . . . Repair Stations . | . . . Recycling Units . | . . . Scanalyzers . | . . . Garrison Access . | . . . Terminal Hacks . | . . . Fabricator Hacks . | . . . Repair Station Hacks . | . . . Recycling Unit Hacks . | . . . Scanalyzer . | . . . Garrison Access Hacks . | . . . Unauthorized Hacks . | . . . Terminals . | . . . Fabricators . | . . . Repair Stations . | . . . Recycling Units . | . . . Scanalyzers . | . . . Garrison Access . | . . . Data Cores Recovered . | . . . Used . | . . . Hacking Detections . | . . . Full Trace Events . | . . . Feedback Events . | . . . Feedback Blocked . | . . . Robot Schematics Acquired . | . . . Robots Built . | . . . Authchips . | . . . Time . | . . . Total Robot Build Rating . | . . . Part Schematics Acquired . | . . . Parts Built . | . . . Authchips . | . . . Time . | . . . Total Part Build Rating . | . . . Parts Repaired . | . . . Time . | . . . Parts Recycled . | . . . Recycled Matter . | . . . Retrieved Matter . | . . . Retrieved Components . | . . . Parts Scanalyzed . | . . . Part Schematics Acquired . | . . . Parts Damaged . | . . . Bothacking | -11 -10 -10 ------------ Run | Yrd Mat Min Used RIF Installer . | . . . Robots Hacked . | . . . Non-combat . | . . . Combat . | . . . Robot Hacks Applied . | . . . Relay Couplers Released . | . . . Fabnet Peak Effective % . | . . . Robots Rewired . | . . . Allies Hacked . | . . . Hacks Repelled . | . . . Allies | -11 -10 -10 -------- Run | Yrd Mat Min Total Allies . | . . . Largest Group . | . . . Highest-Rated Group . | . . . Highest-Rated Ally . | . . . Total Orders . | . . . Ally Attacks . | . . . Total Damage . | . . . Kills . | . . . Allies Corrupted . | . . . Allies Melted . | . . . Intel | -11 -10 -10 ------- Run | Yrd Mat Min Robot Analysis Total . | . . . Derelict Logs Recovered . | . . . Drone Launches . | . . . Drone Recoveries . | . . . Exploration | -11 -10 -10 ------------- Run | Yrd Mat Min Turns Passed 2081 | 116 1579 386 Spaces Moved 598 | 51 505 42 Core 22 | 19 . 3 Treads 539 | 32 505 2 Legs 37 | . . 37 Wheels . | . . . Hover . | . . . Flight . | . . . Fastest Speed 50 | 50 160 320 Average Speed 300 | 119 284 715 Slowest Speed 1450 | 160 320 1450 Overloaded Moves . | . . . Propulsion Burnouts . | . . . Robots Hopped . | . . . Cave-ins Triggered . | . . . Exploration Rate (%) 29 | 3 73 13 Regions Visited 2 Branch Regions 1 Pre-discovered Areas . | . . . Known Exits Taken . | . . . Unknown Exits Taken 2 | 1 1 . Scrap Searched . | . . . Spaces Dug . | . . . Terrain Destroyed 29 | . 12 17 Melee . | . . . Projectile . | . . . AOE 29 | . 12 17 Terrain Rammed . | . . . Walls Destroyed . | . . . Machines Disabled . | . . . Actions | -11 -10 -10 --------- Run | Yrd Mat Min Total 797 | 105 579 113 Wait 97 | 44 5 48 Move 596 | 50 504 42 Hop . | . . . Pick Up 30 | 6 21 3 Fast Attach 2 | 2 . . Attach 9 | 3 2 4 Detach . | . . . Swap 6 | . 6 . Drop 5 | . 4 1 Fire 52 | . 37 15 Melee . | . . . Ram . | . . . Kick . | . . . Crush . | . . . Escape Stasis . | . . . Rewire . | . . . Trap . | . . . Miscellaneous . | . . . Route ------- -11/Scrapyard -10/Materials (discovered 3 exits: [*Mat x2] / [*Min]) -10/Mines (discovered 1 exit: [*Mat]) History --------- Turn | Location | Event 18 | -11/Scrapyard | Discovered new exit (range 16) 117 | -11/Scrapyard | Entered Materials 306 | -10/Materials | Build established: Mutant 553 | -10/Materials | Discovered new exit (range 12) 911 | -10/Materials | Discovered new exit (range 7) 1310 | -10/Materials | Discovered new exit (range 8) 1696 | -10/Materials | Entered Mines 1704 | -10/Mines | Core integrity fell below 50% 1721 | -10/Mines | Core integrity fell below 20% 1749 | -10/Mines | Lost 6 parts (1p2n1u2w) 1755 | -10/Mines | Met a Derelict bent on vengeance 1888 | -10/Mines | Discovered new exit (range 4) 2082 | -10/Mines | Destroyed self with Light Ion Engine chain reaction Last Messages --------------- EM Shotgun destroyed. G-34 Mercenary destroyed. Acquired 5 matter. EXIT=FOUND K-01 Serf collects debris. K-01 Serf destroyed. K-01 Serf collects debris. Acquired Lgt. Ion Engine. K-01 Serf collects debris. Acquired Corrupted Wheel. K-01 Serf collects debris. Acquired Wheel. K-01 Serf collects debris. Dropped Corrupted Wheel. K-01 Serf destroyed. K-01 Serf collects debris. Acquired 10 matter. K-01 Serf collects debris. Chain reaction triggered in Lgt. Ion Engine. K-01 Serf destroyed. Map ----- +----------------------------------------------------+ | ?????????????????????????????????????????????????? | | ?????????????????????????????????????????????????? | | ?????????????????????????????????????????????????? | | ?????????????????????????????????????????????????? | | ?????????????????????????????????????????????????? | | ?????????????????????????????????????????????????? | | ?????????????????????????????????????????????????? | | ?????????????????????????????????????????????????? | | ?????????????????????????????????????????????????? | | ?????????????????????????????????????????????????? | | ?????????????????????????????????????????????????? | | ?????????????????????????????????????????????????? | | ?????????????????????????????????????????????????? | | ?????????????????????????????????????????????????? | | ?????????????????????????????????????????????????? | | ?????????????????????????????????????????????????? | | ?????????????????????????????????????????????????? | | ?????????????????????????????????????????????????? | | ????????#????????????????????????????????????????? | | ???????? ????????????????????????????????????????? | | ???????? ?????????????###???????????????????????? | | ????????# ?????????????# ???????????????????????? | | ????????# ?????????????# #???????????????????????? | | ????????# ?????????????# #???????????????????????? | | ????????# ###??????????# ###;####### ?????????? | | ????????? #?????????## @= ????????? | | ?????????# #????????## =% ????????? | | ?????????# #???????## ;;;## ## ### ????????? | | ?????????# ####?#### ##???????????????????????? | | ?????????# =### ##????????????????????????? | | ?????????# !=%%% ##?????????????????????????? | | ????????###= %%[ #??????????????????????????? | | ????????## % ! [ ##??????????????????????????? | | ????????# !% #???????????????????????????? | | ????????# ! ????????????????????? | | ????????##*%## < ###### ?????????????????????? | | ????????## ### #???????????????????????????? | | ????????## ####### #??????????????????????????? | | ????????## ##????## ##??????????????????????????? | | ????###### #####???##???????????????????????????? | | ????###### ######???????????????????????????????? | | ????## ###???????????????????????????????? | | ????## ###???????????????????????????????? | | ????## ###???????????????????????????????? | | ????## % ###???????????????????????????????? | | ????## ###???????????????????????????????? | | ????## ###???????????????????????????????? | | ????##############???????????????????????????????? | | ????######### ####???????????????????????????????? | | ???????###########???????????????????????????????? | +----------------------------------------------------+ Best States ------------- Heat Dissipation 25 Energy Generation 10 Energy Capacity 250 Matter Stores 300 Matter Capacity 300 Sight Range 16 Terrain Scan Density 10 Evasion (%) 50 Recoil Reduction 2 Salvage Targeting 2 Item Schematics ----------------- None Robot Schematics ------------------ None Fabricated ------------ Nothing Alien Tech Used ----------------- None Achievements -------------- None Challenges ------------ None Game ------ Seed DecoyThrusterTube Manual? 0 Play Time 00:14:06 Cumulative 3.1 hours Start 2024.04.01 @ 23:56:58 End 2024.04.02 @ 20:08:48 Sessions 3 Manual Loads 0 Difficulty Rogue Special Mode None Game No. 9 Rogue 9 Adventurer 0 Explorer 0 Win Type - Total 0 Types 0/0/0/0/0/0/0/0/0 Lore% 1 Gallery% 6 Achievement% 7 Wizard Run 0 Options --------- Layout 1 ASCII 0 Keyboard 0 Movement Mouse Keybinds 0 Fullscreen 1 Font 24/Smallcaps Map View 50x35 Zoom Use 0% Tactical HUD 0 Map Filters NONE Filters NONE Steam 1 RUN: dc23a888-1bc9-4fd7-9155-49a0c62164cb